bitfinex/quotes_ETHUSD_20250810
["timestamp","ask_amount","ask_price","bid_price","bid_amount"]
[1754833967218,3.653,4188.5,4188.4,2.38754655]
[1754833967397,3.653,4188.5,4188.3,0.1192]
[1754833968720,3.653,4188.5,4188.3,2.5067999]
[1754833968921,3.653,4188.5,4188.4,2.38754655]
[1754833969424,3.653,4188.5,4188.4,2.82414655]
[1754833969593,3.653,4188.5,4188.3,0.1192]
[1754833969792,4.1214,4188.5,4188.3,0.1192]
[1754833970022,0.9385,4188.4,4187.8,0.001]
[1754833970220,0.9385,4188.4,4188.0,0.1192]
[1754833970422,4.06514,4188.5,4187.8,0.001]
[1754833970723,2.38766927,4188.2,4187.8,0.1202]
[1754833970925,3.88976693,4188.1,4187.8,0.001]
[1754833971223,4.5895,4188.1,4187.8,0.001]
[1754833971426,0.9385,4188.0,4187.8,0.001]
[1754833971808,6.03872779,4188.1,4187.8,0.001]
[1754833972016,0.4684,4187.9,4187.8,0.001]
[1754833972217,4.1211,4188.1,4187.8,0.001]
[1754833972415,3.651,4188.1,4187.8,0.001]
[1754833972621,4.1194,4188.1,4187.8,0.001]
[1754833973092,6.50716209,4188.1,4187.8,0.001]
[1754833973297,0.9385,4188.0,4187.8,0.001]
[1754833973709,6.74838844,4188.1,4187.8,0.001]
[1754833973926,0.9385,4187.9,4187.8,0.001]
[1754833974999,0.4684,4187.9,4187.8,0.001]
[1754833975199,0.1192,4187.9,4187.8,0.001]
[1754833975528,0.1192,4187.9,4187.8,3.31298862]
[1754833975529,3.651,4187.9,4187.8,3.31298862]
[1754833975725,3.651,4187.9,4187.8,3.43218862]
[1754833975926,3.651,4187.9,4187.8,2.94468862]
[1754833976225,4.5895,4187.9,4187.8,0.001]
[1754833976526,5.0738,4187.9,4187.8,0.001]
[1754833977528,0.1192,4187.9,4187.8,0.001]
[1754833977828,3.651,4187.9,4187.8,2.38888862]
[1754833978029,0.5104583,4188.6,4188.0,2.38776443]
[1754833978328,3.651,4188.5,4188.1,0.1192]
[1754833978728,3.0,4188.4,4188.1,0.1192]
[1754833978932,3.5104583,4188.4,4188.1,0.1192]
[1754833979938,6.651,4188.3,4188.2,2.38760745]
[1754833980235,6.651,4188.3,4188.1,0.1192]
[1754833981531,0.4684,4188.2,4188.1,0.1192]
[1754833981699,6.651,4188.3,4188.1,0.1192]
[1754833982402,6.651,4188.3,4188.1,2.5069099]
[1754833982725,6.651,4188.3,4188.2,2.38766057]
[1754833984020,6.651,4188.3,4188.1,0.1192]
[1754833984718,0.9385,4188.2,4187.8,0.001]
[1754833984922,6.03876569,4188.1,4187.8,0.001]
[1754833985229,0.1192,4188.0,4187.8,0.001]
[1754833985429,3.651,4187.9,4187.8,0.001]
[1754833985630,4.5895,4187.9,4187.8,0.001]
[1754833985822,7.5895,4187.9,4187.8,0.001]
[1754833986136,10.84797247,4187.9,4187.8,0.001]
[1754833986309,8.46014086,4187.9,4187.8,0.001]
[1754833986635,10.84797247,4187.9,4187.8,0.001]
[1754833987015,41.35875848,4187.9,4187.8,0.001]
[1754833988216,41.58038246,4187.9,4187.8,0.001]
[1754833988734,2.3880597,4187.5,4187.4,0.001]
[1754833988943,39.93586403,4187.5,4187.4,0.001]
[1754833989127,41.38515004,4187.5,4187.4,0.001]
[1754833991209,41.93515004,4187.5,4187.4,0.001]
[1754833991411,41.93515004,4187.5,4187.2,0.001]
[1754833991412,5.93817376,4187.3,4187.2,0.001]
[1754833991723,3.55,4187.0,4186.5,0.001]
[1754833991929,40.21933088,4187.0,4186.5,0.001]
[1754833992341,44.99721233,4187.0,4186.5,0.001]
[1754833992514,40.79621233,4187.0,4186.5,0.001]
[1754833992714,41.79392093,4187.0,4186.5,0.001]
[1754833992913,45.44592093,4187.0,4186.5,0.001]
[1754833993642,45.44434005,4187.0,4186.5,0.001]
[1754833993837,44.93513492,4187.0,4186.5,0.001]
[1754833994215,41.09575347,4187.0,4186.5,0.001]
[1754833994416,41.64575347,4187.0,4186.5,0.001]
[1754833995315,42.15476335,4187.0,4186.5,0.001]
[1754833995511,41.64575347,4187.0,4186.5,0.001]
[1754833995912,41.09575347,4187.0,4186.5,0.001]
[1754833996130,4.1169086,4187.0,4186.5,0.001]
[1754833996317,4.1169086,4187.0,4186.9,0.4376]
[1754833996318,0.1192,4187.0,4186.9,0.4376]
[1754833996532,3.7712,4187.0,4186.9,3.31350192]
[1754833996734,3.7712,4187.0,4186.9,0.9251]
[1754833996932,6.7712,4187.0,4186.9,0.9251]
[1754833997242,6.7712,4187.0,4186.9,0.001]
[1754833998258,8.02172,4187.0,4186.9,0.001]
[1754833999756,41.35776487,4187.0,4186.9,0.001]
[1754834001126,41.90776487,4187.0,4186.9,0.001]
[1754834001332,41.90776487,4187.0,4186.5,0.001]
[1754834001333,2.38857306,4186.6,4186.5,0.001]
[1754834001552,40.54248009,4186.6,4186.5,0.001]
[1754834001761,40.99278009,4186.6,4186.5,0.001]
[1754834001964,41.49018009,4186.6,4186.5,0.001]
[1754834003060,41.49018009,4186.6,4186.4,0.001]
[1754834003061,5.93863012,4186.5,4186.4,0.001]
[1754834003281,36.88633012,4186.5,4186.4,0.001]
[1754834003475,38.83861486,4186.5,4186.4,0.001]
[1754834004280,41.11211486,4186.5,4186.4,0.001]
[1754834004856,38.72348474,4186.5,4186.4,0.001]
[1754834005073,8.72348474,4186.5,4186.4,0.001]
[1754834005265,6.7712,4186.5,4186.4,0.9556]
[1754834007141,0.1192,4186.5,4186.4,3.34428717]
[1754834007352,3.0,4187.0,4186.5,2.38862556]
[1754834007557,0.1192,4186.7,4186.6,0.9546]
[1754834007752,6.7712,4186.7,4186.6,0.9546]
[1754834008467,6.652,4186.7,4186.4,0.001]
[1754834008633,3.652,4186.7,4186.6,0.9546]
[1754834008967,3.652,4186.7,4186.6,3.34317306]
[1754834009181,3.652,4186.7,4186.6,3.67769037]
[1754834010268,3.652,4186.7,4186.6,3.34317306]
[1754834010652,3.652,4186.7,4186.5,2.5078197]
[1754834010958,3.652,4186.7,4186.5,0.1192]
[1754834011339,5.734,4187.1,4186.6,3.34317306]
[1754834011670,5.734,4187.1,4187.0,2.38834487]
[1754834011882,9.386,4187.1,4187.0,3.46214487]
[1754834013675,9.387,4187.1,4187.0,3.46214487]
[1754834014487,3.653,4187.1,4187.0,4.04720525]
[1754834015877,0.002,4188.1,4188.0,2.38777459]
[1754834016077,3.655,4188.1,4187.9,2.38781901]
[1754834016414,3.655,4188.1,4188.0,2.38777459]
[1754834016745,3.654,4188.1,4188.0,3.34237459]
[1754834017874,3.654,4188.1,4187.8,0.1192]
[1754834018070,3.654,4188.1,4187.0,2.97339576]
[1754834018071,4.0194,4188.1,4187.7,2.38793133]
[1754834018249,3.7732,4188.1,4187.8,2.8428873]
[1754834018451,3.7732,4188.1,4187.5,0.1192]
[1754834018452,3.654,4188.1,4188.0,2.38777459]
[1754834018751,3.654,4188.1,4187.9,3.34242058]
[1754834018952,3.654,4188.1,4187.9,2.88742058]
[1754834019148,0.002,4188.1,4188.0,3.34237459]
[1754834019354,3.658,4188.1,4188.0,3.34237459]
[1754834020557,3.658,4188.1,4188.0,0.9546]
[1754834020760,3.658,4188.1,4188.0,3.34237459]
[1754834021269,3.658,4188.1,4187.9,2.50702457]
[1754834021469,3.658,4188.1,4188.0,2.38777459]
[1754834022071,3.658,4188.1,4188.0,2.84277459]
[1754834022371,0.002,4188.1,4188.0,3.34237459]
[1754834022882,3.656,4188.1,4188.0,4.04651875]
[1754834023583,0.002,4188.1,4188.0,4.04651875]
[1754834024899,1e-08,4188.1,4188.0,4.62039649]
[1754834025058,1e-08,4188.1,4188.0,4.59651875]
[1754834026162,1e-08,4188.1,4188.0,4.04651875]
[1754834029196,1e-08,4188.1,4188.0,4.59651875]
[1754834029492,1e-08,4188.1,4188.0,8.25051875]
[1754834033189,1e-08,4188.1,4188.0,8.34609875]
[1754834034494,1e-08,4188.1,4188.0,4.69209875]
[1754834034825,1e-08,4188.1,4188.0,3.18749875]
[1754834036817,1e-08,4188.1,4188.0,4.10679875]
[1754834037320,1e-08,4188.1,4188.0,4.13067649]
[1754834038324,1e-08,4188.1,4188.0,4.65679875]
[1754834039095,1e-08,4188.1,4188.0,7.65679875]
[1754834041106,1e-08,4188.1,4188.0,7.65779875]
[1754834045797,1e-08,4188.6,4188.5,2.38748955]
[1754834045998,1e-08,4188.6,4188.5,7.0888698]
[1754834046229,0.002,4189.0,4188.5,7.0888698]
[1754834046230,1e-08,4189.0,4188.9,0.55]
[1754834046399,1e-08,4189.0,4188.9,6.58726157]
[1754834046630,1e-08,4189.0,4188.9,7.62576157]
[1754834048236,1e-08,4189.0,4188.9,8.09526157]
[1754834048466,1e-08,4189.0,4188.9,9.14351958]
[1754834050353,0.5075,4189.9,4189.7,2.93680573]
[1754834050354,1e-08,4189.9,4189.7,2.93680573]
[1754834050554,1e-08,4189.9,4189.8,3.07981625]
[1754834050766,1e-08,4189.9,4189.8,2.50594877]
[1754834050975,0.49120001,4189.9,4189.8,3.23391228]
[1754834051377,0.95870001,4189.9,4189.8,3.23391228]
[1754834051741,0.95870001,4189.9,4189.8,2.50594877]
[1754834052056,0.95870001,4189.9,4189.7,2.09822118]
[1754834052372,1e-08,4189.9,4189.8,2.50594877]
[1754834052877,0.95870001,4189.9,4189.8,2.50594877]
[1754834055757,1e-08,4189.9,4189.8,2.50594877]
[1754834057053,0.95870001,4189.9,4189.8,2.50594877]
[1754834058972,0.46750001,4189.9,4189.8,2.50594877]
[1754834059675,0.94520001,4189.9,4189.8,0.1192]
[1754834060178,6.33189181,4189.9,4189.8,0.1192]
[1754834060357,6.33189181,4189.9,4188.9,2.38722093]
[1754834060358,2.38688836,4189.6,4188.9,2.38722093]
[1754834060545,0.941,4189.5,4189.3,0.1192]
[1754834061050,0.941,4189.4,4188.1,3.649]
[1754834061241,3.649,4189.6,4189.1,0.1192]
[1754834061242,0.941,4189.3,4189.1,0.1192]
[1754834061442,1.65061253,4189.3,4189.1,0.1192]
[1754834061685,0.4777,4189.6,4189.3,2.38700862]
[1754834061883,0.4633,4189.5,4189.3,2.38700862]
[1754834062083,0.4633,4189.5,4189.4,2.38697665]
[1754834062283,0.4633,4189.5,4189.4,2.50617665]
[1754834062490,0.4777,4189.6,4189.5,2.38691968]
[1754834062904,0.4777,4189.6,4189.4,0.1192]
[1754834062905,0.941,4189.6,4189.4,0.1192]
[1754834063308,0.941,4189.6,4189.4,2.50615947]
[1754834063912,0.941,4189.6,4189.5,2.38691968]
[1754834064091,0.4633,4189.6,4189.5,2.38691968]
[1754834064421,0.4653,4189.8,4189.4,2.50616269]
[1754834064583,0.4633,4189.6,4189.4,2.38696269]
[1754834064996,0.4633,4189.6,4189.5,0.1192]
[1754834065191,0.002,4189.8,4189.5,0.1192]
[1754834065519,0.002,4189.8,4188.4,2.3875]
[1754834065520,0.3651,4189.7,4189.2,2.38704649]
[1754834065713,0.9476,4189.7,4189.2,2.38704649]
[1754834065921,0.941,4189.6,4189.1,0.1192]
[1754834066086,34.78904552,4189.5,4188.0,0.001]
[1754834066286,2.38771758,4188.1,4187.5,0.001]
[1754834066597,3.0,4187.9,4187.5,0.1202]
[1754834066923,6.01652507,4187.9,4187.5,0.001]
[1754834067090,3.0,4187.7,4187.5,0.001]
[1754834067715,0.941,4187.6,4187.5,0.001]
[1754834070393,6.32900267,4187.6,4187.5,0.001]
[1754834070590,7.87880657,4187.6,4187.5,0.001]
[1754834070836,37.87880657,4187.6,4187.5,0.001]
[1754834071039,37.99800657,4187.6,4187.5,0.001]
[1754834071531,5.6100039,4187.6,4187.5,0.001]
[1754834071827,4.0602,4187.6,4187.5,0.001]
[1754834072028,6.7852,4187.6,4187.5,0.001]
[1754834072193,6.7852,4187.6,4186.5,0.001]
[1754834072194,2.38857306,4186.6,4186.5,0.001]
[1754834072393,39.05457306,4186.6,4186.5,0.001]
[1754834072621,40.11477306,4186.6,4186.5,0.001]
[1754834072789,42.43181374,4186.6,4186.5,0.001]
[1754834074713,38.76581374,4186.6,4186.5,0.001]
[1754834074912,10.16277306,4186.6,4186.5,0.001]
[1754834075113,7.7742,4186.6,4186.5,0.001]
[1754834075312,10.16277306,4186.6,4186.5,0.001]
[1754834076706,40.16277306,4186.6,4186.5,0.001]
[1754834077148,34.0602,4186.6,4186.5,0.001]
[1754834077320,9.61154068,4186.6,4186.5,0.001]
[1754834077643,0.55,4186.3,4186.1,0.001]
[1754834077842,0.55,4186.1,4185.6,0.001]
[1754834078144,0.55,4185.7,4185.6,0.001]
[1754834078346,39.65308665,4185.7,4185.6,0.001]
[1754834078512,39.65308665,4185.7,4185.5,0.001]
[1754834078513,5.93914373,4185.6,4185.5,0.001]
[1754834078717,39.19718441,4185.6,4185.5,0.001]
[1754834080031,42.91218441,4185.6,4185.5,0.001]
[1754834082043,42.43448441,4185.6,4185.5,0.001]
[1754834082622,35.78034068,4185.6,4185.5,0.001]
[1754834082816,41.88248441,4185.6,4185.5,0.001]
[1754834083210,42.91018441,4185.6,4185.5,0.001]
[1754834084748,43.0862514,4185.6,4185.5,0.001]
[1754834085463,37.8822514,4185.6,4185.5,0.001]
[1754834085641,0.17606699,4185.6,4185.5,0.001]
[1754834085835,3.713,4185.6,4185.5,0.001]
[1754834086363,3.716,4185.6,4185.5,0.001]
[1754834086667,3.716,4185.6,4185.5,0.933]
[1754834086851,3.716,4185.6,4185.5,3.32220081]
[1754834088937,6.714,4185.6,4185.5,3.32220081]
[1754834089163,6.714,4185.6,4185.5,0.4466]
[1754834089475,0.1192,4186.2,4186.1,2.38885836]
[1754834089654,3.714,4186.2,4186.1,0.9324]
[1754834089970,3.714,4186.2,4186.1,3.32125836]
[1754834090264,5.734,4186.3,4186.2,2.38880129]
[1754834090265,8.734,4186.3,4186.2,2.38880129]
[1754834090459,9.448,4186.3,4186.2,2.38880129]
[1754834090663,2.38813123,4187.4,4186.4,2.38868717]
[1754834090962,0.1192,4186.8,4186.6,2.38857306]
[1754834091332,6.716,4186.7,4186.6,2.38857306]
[1754834091532,6.716,4186.7,4186.6,0.9324]
[1754834091984,6.716,4186.7,4186.6,3.32097306]
[1754834091985,6.715,4186.7,4186.6,3.32097306]
[1754834092955,3.715,4186.7,4186.6,3.44017306]
[1754834093279,3.714,4186.7,4186.6,4.02305551]
[1754834094079,3.714,4186.7,4186.6,2.50777306]
[1754834094480,3.714,4186.7,4186.6,3.44017306]
[1754834094684,0.002,4186.7,4186.6,3.44017306]
[1754834096002,1e-08,4186.7,4186.6,3.44017306]
[1754834101791,1e-08,4186.7,4186.6,3.46405879]
[1754834101963,1e-08,4186.7,4186.6,4.04933209]
[1754834102291,1e-08,4186.7,4186.6,4.59933209]
[1754834102460,1e-08,4186.7,4186.6,7.57544636]
[1754834105958,0.4413,4189.2,4187.4,2.38811673]
[1754834106171,3.703,4189.1,4189.0,2.50640458]
[1754834106374,6.703,4189.1,4189.0,2.50640458]
[1754834106594,7.1443,4189.1,4189.0,2.50640458]
[1754834106893,7.6251,4189.1,4189.0,0.1192]
[1754834107269,7.6251,4189.1,4188.6,0.1192]
[1754834107495,2.27003,4189.0,4188.6,0.1192]
[1754834107797,2.27003,4189.0,4188.6,2.5065913]
[1754834107991,1.34793,4189.0,4188.6,2.5065913]
[1754834108198,0.9221,4188.9,4188.6,0.1192]
[1754834108692,0.9221,4188.8,4188.6,0.1192]
[1754834108895,0.9221,4188.8,4188.6,2.50662776]
[1754834109057,0.4413,4188.7,4188.6,2.50662776]
[1754834109260,6.703,4189.1,4188.6,2.50662776]
[1754834109461,0.4413,4189.0,4188.7,2.38736074]
[1754834109659,4.1433,4188.9,4188.6,2.5066209]
[1754834110166,0.4413,4188.8,4188.6,0.1192]
[1754834110366,0.9221,4188.8,4188.6,0.1192]
[1754834110575,0.4808,4188.7,4188.6,0.1192]
[1754834110806,0.9221,4188.7,4188.6,0.1192]
[1754834111383,4.6221,4188.7,4188.6,0.1192]
[1754834111586,4.6221,4188.7,4188.2,2.38760768]
[1754834111587,4.6221,4188.7,4188.4,0.1192]
[1754834111903,0.9221,4188.6,4188.4,0.1192]
[1754834112285,0.9221,4188.5,4188.4,0.1192]
[1754834113104,0.4413,4188.5,4188.4,0.1192]
[1754834113305,3.699,4188.5,4188.4,0.1192]
[1754834113504,4.5092,4188.5,4188.4,0.1192]
[1754834113802,4.99,4188.5,4188.1,0.1192]
[1754834113991,4.0679,4188.5,4188.1,0.1192]
[1754834114177,0.9221,4188.4,4188.1,0.1192]
[1754834114711,4.0679,4188.5,4188.1,0.1192]
[1754834114712,0.4413,4188.3,4188.1,0.1192]
[1754834115009,3.698,4188.2,4188.1,0.1192]
[1754834115171,5.1191,4188.2,4188.1,0.1192]
[1754834115370,2.38781925,4188.0,4187.0,0.457]
[1754834115575,0.4413,4188.0,4187.7,0.1192]
[1754834115810,0.4413,4187.9,4187.7,0.1192]
[1754834117721,3.698,4188.2,4187.7,0.1192]
[1754834118027,6.08570441,4188.2,4187.7,0.1192]
[1754834118395,0.4507,4188.1,4187.7,0.1192]
[1754834119125,0.9353,4188.0,4187.7,0.1192]
[1754834119497,0.4507,4187.9,4187.7,0.1192]
[1754834120391,0.4507,4187.8,4187.7,0.1192]
[1754834120585,3.698,4188.2,4187.7,0.1192]
[1754834120787,0.4507,4187.8,4187.7,0.1192]
[1754834121518,0.9353,4188.1,4187.7,0.1192]
[1754834121816,2.8385139,4188.0,4187.7,0.1192]
[1754834122112,0.9353,4188.0,4187.7,0.1192]
[1754834122316,1.28596016,4188.1,4187.7,0.1192]
[1754834122317,0.50936025,4188.1,4187.7,0.1192]
[1754834122514,2.8970835,4188.1,4187.7,0.1192]
[1754834122717,3.3477835,4188.1,4187.7,0.1192]
[1754834123086,2.38788712,4187.9,4187.7,0.1192]
[1754834123418,6.07888862,4187.8,4187.7,0.1192]
[1754834123633,6.52958862,4187.8,4187.7,0.1192]
[1754834123927,2.38810356,4187.5,4186.7,2.38851515]
[1754834124087,3.69,4187.4,4187.0,0.1192]
[1754834124509,3.693,4187.3,4187.1,0.4424]
[1754834124718,3.694,4187.4,4187.3,0.1192]
[1754834125020,3.0,4188.0,4187.3,1.0221]
[1754834125219,3.694,4187.9,4187.3,2.50735276]
[1754834125389,3.694,4187.9,4187.8,0.1192]
[1754834127000,2.38767222,4188.2,4187.8,0.1192]
[1754834127205,2.38767337,4188.2,4187.8,0.1192]
[1754834127441,3.692,4188.1,4187.8,0.1192]
[1754834127807,6.59001704,4188.1,4187.8,0.1192]
[1754834128005,3.692,4188.0,4187.8,0.1192]
[1754834128233,2.83836839,4188.2,4187.8,0.1202]
[1754834128416,6.691,4188.1,4187.8,0.1202]
[1754834128627,3.0,4188.1,4187.8,0.1202]
[1754834128808,3.691,4188.0,4187.8,0.1202]
[1754834131050,4.20144779,4188.0,4187.8,0.1202]
[1754834131207,4.20144779,4188.0,4187.8,0.001]
[1754834131208,7.27607554,4187.9,4187.8,0.001]
[1754834131404,7.78652333,4187.9,4187.8,0.001]
[1754834131716,38.00804613,4187.9,4187.8,0.001]
[1754834132140,38.64485489,4187.9,4187.8,0.001]
[1754834132941,38.00804613,4187.9,4187.8,0.001]
[1754834133541,38.85438208,4187.9,4187.8,0.001]
[1754834133909,2.38788862,4187.8,4187.3,0.001]
[1754834134140,0.1192,4187.4,4187.3,0.001]
[1754834134324,36.19631673,4187.4,4187.3,0.001]
[1754834134509,36.92828732,4187.4,4187.3,0.001]
[1754834134706,37.86358732,4187.4,4187.3,0.001]
[1754834134946,39.04161881,4187.4,4187.3,0.001]
[1754834136246,39.04061881,4187.4,4187.3,0.001]
[1754834136542,38.30864822,4187.4,4187.3,0.001]
[1754834139636,38.42854151,4187.4,4187.3,0.001]
[1754834140008,42.19973552,4187.4,4187.3,0.001]
[1754834141939,42.37866508,4187.4,4187.3,0.001]
[1754834142716,42.37866508,4187.4,4186.0,0.001]
[1754834142717,2.38874991,4186.3,4186.0,0.001]
[1754834142913,3.686,4186.2,4186.0,0.001]
[1754834143118,4.5018,4186.2,4186.0,0.001]
[1754834143440,4.0511,4186.2,4186.0,0.001]
[1754834143641,3.686,4186.2,4186.0,0.001]
[1754834144150,0.1192,4186.3,4186.1,0.9029]
[1754834144450,0.1192,4186.3,4186.1,0.4424]
[1754834144627,0.1192,4186.7,4186.2,0.9029]
[1754834144819,3.0,4186.5,4186.3,3.29163331]
[1754834145146,0.1192,4186.7,4186.4,3.29157067]
[1754834145322,3.687,4186.6,4186.5,0.9029]
[1754834145527,6.687,4186.6,4186.5,3.29153012]
[1754834145918,6.687,4186.6,4186.5,0.9029]
[1754834146149,6.687,4186.6,4186.5,3.29153012]
[1754834146518,0.17892956,4187.4,4186.5,1.48284715]
[1754834146715,3.1192,4187.2,4186.9,2.38839641]
[1754834146945,3.686,4187.1,4186.9,2.38839641]
[1754834147151,3.686,4187.1,4187.0,2.50754487]
[1754834147653,3.686,4187.1,4187.0,1.0402]
[1754834147820,3.686,4187.1,4187.0,0.1192]
[1754834149444,3.686,4187.1,4187.0,2.94594487]
[1754834149660,3.686,4187.1,4187.0,3.42854487]
[1754834149956,6.686,4187.1,4187.0,0.1192]
[1754834150156,6.686,4187.1,4187.0,0.1202]
[1754834151960,6.686,4187.1,4187.0,0.001]
[1754834153270,7.59342394,4187.1,4187.0,0.001]
[1754834153479,2.38885836,4186.1,4185.3,0.001]
[1754834153630,36.32698358,4186.1,4185.3,0.001]
[1754834153960,40.87150727,4186.1,4185.3,0.001]
[1754834154275,43.18854795,4186.1,4185.3,0.001]
[1754834155673,12.27264795,4186.1,4185.3,0.001]
[1754834155961,12.05152273,4186.1,4185.3,0.001]
[1754834156529,12.05066364,4186.1,4185.3,0.001]
[1754834157035,12.96656364,4186.1,4185.3,0.001]
[1754834157957,13.08395068,4186.1,4185.3,0.001]
[1754834158166,12.59625068,4186.1,4185.3,0.001]
[1754834159671,8.88225068,4186.1,4185.3,0.001]
[1754834159868,9.84801,4186.1,4185.4,0.4384]
[1754834160080,7.45715164,4186.1,4185.4,2.82765578]
[1754834160285,5.6254454,4186.1,4185.4,0.4384]
[1754834160597,9.84600963,4186.1,4185.4,0.4384]
[1754834161276,9.58698649,4186.1,4185.4,0.4384]
[1754834161482,11.21576001,4186.1,4185.4,0.4384]
[1754834161661,11.70046001,4186.1,4185.3,0.001]
[1754834162052,11.21576001,4186.1,4185.3,0.001]
[1754834163773,41.70046001,4186.1,4185.3,0.001]
[1754834166440,41.21576001,4186.1,4185.3,0.001]
[1754834166974,40.77956001,4186.1,4185.5,0.4836]
[1754834167180,40.77956001,4186.1,4185.5,0.922]
[1754834167475,41.21076001,4186.1,4185.5,0.001]
[1754834167676,41.69546001,4186.1,4185.5,0.001]
[1754834167980,41.21076001,4186.1,4185.5,0.001]
[1754834168277,40.77956001,4186.1,4185.5,0.001]
[1754834168484,40.27099578,4186.1,4185.5,0.001]
[1754834168780,40.77962294,4186.1,4185.5,0.001]
[1754834169279,40.77562294,4186.1,4185.5,0.001]
[1754834169774,37.50382294,4186.1,4185.5,0.001]
[1754834169978,41.20682294,4186.1,4185.5,0.001]
[1754834170567,41.69152294,4186.1,4185.5,0.001]
[1754834171862,41.20682294,4186.1,4185.5,0.001]
[1754834172289,41.69152294,4186.1,4185.5,0.001]
[1754834172658,40.77562294,4186.1,4185.5,0.001]
[1754834172858,37.07262294,4186.1,4185.5,0.001]
[1754834173059,40.77262294,4186.1,4185.5,0.4394]
[1754834173455,2.38925789,4185.4,4185.3,0.001]
[1754834173683,39.30996045,4185.4,4185.3,0.001]
[1754834173986,39.85058761,4185.4,4185.3,0.001]
[1754834174312,39.62988505,4185.4,4185.3,0.001]
[1754834174595,5.93931498,4185.3,4185.2,0.001]
[1754834174779,37.0596233,4185.3,4185.2,0.001]
[1754834175092,37.9755233,4185.3,4185.2,0.001]
[1754834175289,2.93960045,4184.8,4184.7,0.001]
[1754834175489,39.67160045,4184.8,4184.7,0.001]
[1754834175788,42.003064,4184.8,4184.7,0.001]
[1754834176590,42.22351148,4184.8,4184.7,0.001]
[1754834177261,2.389886,4184.3,4183.0,0.921]
[1754834177461,39.669886,4184.3,4183.0,0.921]
[1754834177655,39.669886,4184.3,4183.3,0.945]
[1754834177656,41.84039913,4184.3,4183.3,0.945]
[1754834179289,42.06071809,4184.3,4182.0,0.001]
[1754834179490,42.06071809,4184.3,4183.5,0.4665]
[1754834179677,42.06069445,4184.3,4183.5,0.4665]
[1754834180063,42.06669445,4184.3,4183.5,0.4665]
[1754834180264,42.53709445,4184.3,4183.1,0.4665]
[1754834180895,42.53709445,4184.3,4183.3,0.4785]
[1754834181376,2.39000186,4184.1,4182.9,0.001]
[1754834181583,2.39028262,4183.7,4183.0,0.945]
[1754834181908,3.739,4183.6,4183.1,0.945]
[1754834182114,3.0,4183.4,4183.2,3.33549663]
[1754834182406,3.74,4183.3,4183.2,2.39049663]
[1754834182616,3.74,4183.3,4182.9,2.39167274]
[1754834182617,3.74,4183.3,4182.9,0.001]
[1754834183113,3.74,4183.3,4183.0,0.945]
[1754834183315,3.0,4183.2,4182.9,0.001]
[1754834183609,2.39062873,4183.0,4182.9,0.001]
[1754834185291,5.39062873,4183.0,4182.9,0.001]
[1754834186707,6.739,4183.0,4182.9,0.001]
[1754834187107,9.12962873,4183.0,4182.9,0.001]
[1754834187891,6.739,4183.0,4182.9,0.001]
[1754834188303,9.12962873,4183.0,4182.9,0.001]
[1754834188514,10.0919116,4183.0,4182.9,0.001]
[1754834188723,7.70128287,4183.0,4182.9,0.001]
[1754834191727,10.0919116,4183.0,4182.9,0.001]
[1754834192629,7.70128287,4183.0,4182.9,0.001]
[1754834193898,3.0,4183.0,4182.9,0.946]
[1754834194097,6.732,4183.0,4182.9,0.946]
[1754834194316,3.0,4183.0,4182.9,0.946]
[1754834194604,3.0,4183.0,4182.9,3.33668588]
[1754834194997,6.731,4183.0,4182.9,0.946]
[1754834195833,6.73,4183.0,4182.9,0.946]
[1754834196224,6.73,4183.0,4182.9,0.001]
[1754834196417,9.80554873,4183.0,4182.9,0.001]
[1754834196619,40.27034873,4183.0,4182.9,0.001]
[1754834197405,39.80554873,4183.0,4182.9,0.001]
[1754834198019,9.80454873,4183.0,4182.9,0.001]
[1754834198733,3.68492,4183.0,4182.9,0.001]
[1754834198934,3.0,4183.0,4182.9,0.946]
[1754834199440,6.727,4183.0,4182.9,0.946]
[1754834199912,3.0,4183.0,4182.9,0.946]
[1754834200116,0.1192,4183.1,4183.0,2.39062873]
[1754834200432,3.8462,4183.1,4183.0,1.51783146]
[1754834200634,3.727,4183.1,4183.0,0.945]
[1754834201614,3.727,4183.1,4183.0,3.33562873]
[1754834201815,3.727,4183.1,4183.0,0.945]
[1754834202012,3.727,4183.1,4183.0,3.33562873]
[1754834202416,3.727,4183.1,4183.0,0.945]
[1754834202653,3.727,4183.1,4182.9,0.001]
[1754834202818,3.727,4183.1,4183.0,0.945]
[1754834203218,3.726,4183.1,4183.0,0.945]
[1754834203420,3.726,4183.1,4183.0,3.33562873]
[1754834204250,0.1192,4183.4,4183.3,2.39045729]
[1754834204489,3.8452,4183.4,4183.1,3.33557158]
[1754834204657,3.726,4183.4,4183.2,0.945]
[1754834204817,0.63466238,4184.0,4183.3,0.945]
[1754834205021,3.0,4183.8,4183.3,1.0642]
[1754834205358,3.50793098,4183.8,4183.4,3.33538984]
[1754834205520,3.50793098,4183.8,4183.5,0.945]
[1754834205718,5.89810361,4183.8,4183.3,0.1192]
[1754834205917,3.0,4183.6,4182.9,0.001]
[1754834206119,2.39040478,4183.4,4182.9,0.001]
[1754834206357,3.0,4183.2,4182.9,0.001]
[1754834206533,3.727,4183.1,4182.9,0.001]
[1754834206733,2.39062873,4183.0,4182.9,0.001]
[1754834206933,7.77768776,4183.0,4182.9,0.001]